Workbook

Sheet TC-20 Query
A1: ID | B1: Flowgate | C1: Implementation Date & Time | D1: DD-MMM-YY | E1: Start Date & Time | F1: Stop Date & Time | G1: Hour Ending | H1: Interval/s Curtailed | I1: Relief Needed | J1: MW Curtailed | K1: Minutes Curtailed | L1: MWh Ratio | M1: Priority 1 | N1: Priority 2 | O1: Priority 3 | P1: Priority 4 | Q1: Priority 5 | R1: Priority 6 | S1: Priority 7 | T1: Tags Rejected | U1: Priority 1 MWh | V1: Priority 2 MWh | W1: Priority 3 MWh | X1: Priority 4 MWh | Y1: Priority 5 MWh | Z1: Priority 6 MWh | AA1: Priority 7 MWh
A2: [iCRS09017-7] | B2: NOEL | C2: 02/27/2023 11:22:45.560PST | D2: 2023-02-27 | E2: 2023-02-27T11:22:00 | F2: 02/27/2023 12:00:00 | G2: 12 | H2: B-D | I2: 300 | J2: 1686 | K2: 38 | L2: =K2/60 -> 0.6333333333 | M2: 353 | N2: 0 | O2: 43 | P2: 0 | Q2: 0 | R2: 0 | S2: 1290 | T2: 0 | U2: =M2*$L2 -> 223.5666667 | V2: =N2*$L2 -> 0 | W2: =O2*$L2 -> 27.23333333 | X2: =P2*$L2 -> 0 | Y2: =Q2*$L2 -> 0 | Z2: =R2*$L2 -> 0 | AA2: =S2*$L2 -> 817
A3: [iCRS09016-7] | B3: NOEL | C3: 02/27/2023 10:23:36.292PST | D3: 2023-02-27 | E3: 2023-02-27T10:23:00 | F3: 02/27/2023 11:00:00 | G3: 11 | H3: B-D | I3: 300 | J3: 1430 | K3: 37 | L3: =K3/60 -> 0.6166666667 | M3: 379 | N3: 0 | O3: 43 | P3: 0 | Q3: 0 | R3: 0 | S3: 1008 | T3: 0 | U3: =M3*$L3 -> 233.7166667 | V3: =N3*$L3 -> 0 | W3: =O3*$L3 -> 26.51666667 | X3: =P3*$L3 -> 0 | Y3: =Q3*$L3 -> 0 | Z3: =R3*$L3 -> 0 | AA3: =S3*$L3 -> 621.6
A4: [iCRS09013] | B4: NOEL | C4: 02/27/2023 09:49:05.947PST | D4: 2023-02-27 | E4: 2023-02-27T10:00:00 | F4: 02/27/2023 11:00:00 | G4: 11 | H4: A-D | I4: 300 | J4: 804 | K4: 60 | L4: 1 | M4: 804 | N4: 0 | O4: 0 | P4: 0 | Q4: 0 | R4: 0 | S4: 0 | T4: 0 | U4: =M4*$L4 -> 804 | V4: =N4*$L4 -> 0 | W4: =O4*$L4 -> 0 | X4: =P4*$L4 -> 0 | Y4: =Q4*$L4 -> 0 | Z4: =R4*$L4 -> 0 | AA4: =S4*$L4 -> 0
A5: [iCRS08976] | B5: NOEL | C5: 12/21/2022 15:47:07.610PST | D5: =E5 -> 2022-12-21T16:00:00 | E5: 2022-12-21T16:00:00 | F5: 2022-12-21T17:00:00 | G5: 17 | H5: A-D | I5: 181 | J5: 645 | K5: =ROUND((F5-E5)*60*24,0) -> 60 | L5: =K5/60 -> 1 | M5: 645 | N5: 0 | O5: 0 | P5: 0 | Q5: 0 | R5: 0 | S5: 0 | T5: 0 | U5: =M5*$L5 -> 645 | V5: =N5*$L5 -> 0 | W5: =O5*$L5 -> 0 | X5: =P5*$L5 -> 0 | Y5: =Q5*$L5 -> 0 | Z5: =R5*$L5 -> 0 | AA5: =S5*$L5 -> 0
A6: [iCRS08972] | B6: NOEL | C6: 12/21/2022 15:18:51.252PST | D6: =E6 -> 2022-12-21T15:18:00 | E6: 2022-12-21T15:18:00 | F6: 2022-12-21T16:00:00 | G6: 16 | H6: B-D | I6: 100 | J6: 290 | K6: =ROUND((F6-E6)*60*24,0) -> 42 | L6: =K6/60 -> 0.7 | M6: 74 | N6: 56 | O6: 160 | P6: 0 | Q6: 0 | R6: 0 | S6: 0 | T6: 0 | U6: =M6*$L6 -> 51.8 | V6: =N6*$L6 -> 39.2 | W6: =O6*$L6 -> 112 | X6: =P6*$L6 -> 0 | Y6: =Q6*$L6 -> 0 | Z6: =R6*$L6 -> 0 | AA6: =S6*$L6 -> 0
A7: [iCRS08971] | B7: NOEL | C7: 12/21/2022 14:48:56.862PST | D7: =E7 -> 2022-12-21T15:00:00 | E7: 2022-12-21T15:00:00 | F7: 2022-12-21T16:00:00 | G7: 16 | H7: A-D | I7: 300 | J7: 940 | K7: =ROUND((F7-E7)*60*24,0) -> 60 | L7: =K7/60 -> 1 | M7: 940 | N7: 0 | O7: 0 | P7: 0 | Q7: 0 | R7: 0 | S7: 0 | T7: 0 | U7: =M7*$L7 -> 940 | V7: =N7*$L7 -> 0 | W7: =O7*$L7 -> 0 | X7: =P7*$L7 -> 0 | Y7: =Q7*$L7 -> 0 | Z7: =R7*$L7 -> 0 | AA7: =S7*$L7 -> 0
A8: [iCRS08969] | B8: NOEL | C8: 12/21/2022 14:21:02.959PST | D8: =E8 -> 2022-12-21T14:21:00 | E8: 2022-12-21T14:21:00 | F8: 2022-12-21T15:00:00 | G8: 15 | H8: B-D | I8: 200 | J8: 602 | K8: =ROUND((F8-E8)*60*24,0) -> 39 | L8: =K8/60 -> 0.65 | M8: 602 | N8: 0 | O8: 0 | P8: 0 | Q8: 0 | R8: 0 | S8: 0 | T8: 0 | U8: =M8*$L8 -> 391.3 | V8: =N8*$L8 -> 0 | W8: =O8*$L8 -> 0 | X8: =P8*$L8 -> 0 | Y8: =Q8*$L8 -> 0 | Z8: =R8*$L8 -> 0 | AA8: =S8*$L8 -> 0
A9: [iCRS08938] | B9: NOEL | C9: 11/09/2022 19:06:35.578PST | D9: 2022-11-09 | E9: 2022-11-09T19:06:00 | F9: 2022-11-09T20:00:00 | G9: 20 | H9: A-D | I9: 200 | J9: 595 | K9: 54 | L9: =K9/60 -> 0.9 | M9: 595 | N9: 0 | O9: 0 | P9: 0 | Q9: 0 | R9: 0 | S9: 0 | T9: 0 | U9: =M9*$L9 -> 535.5 | V9: =N9*$L9 -> 0 | W9: =O9*$L9 -> 0 | X9: =P9*$L9 -> 0 | Y9: =Q9*$L9 -> 0 | Z9: =R9*$L9 -> 0 | AA9: =S9*$L9 -> 0
A10: [iCRS08931] | B10: NOEL | C10: 11/09/2022 16:46:44.090PST | D10: 2022-11-09 | E10: 2022-11-09T17:00:00 | F10: 2022-11-09T18:00:00 | G10: 18 | H10: A-D | I10: 500 | J10: 1108 | K10: 60 | L10: 1 | M10: 1108 | N10: 0 | O10: 0 | P10: 0 | Q10: 0 | R10: 0 | S10: 0 | T10: 0 | U10: 1108 | V10: 0 | W10: 0 | X10: 0 | Y10: 0 | Z10: 0 | AA10: 0
A11: [iCRS08927] | B11: NOEL | C11: 11/09/2022 16:29:43.925PST | D11: 2022-11-09 | E11: 2022-11-09T16:29:00 | F11: 2022-11-09T17:00:00 | G11: 17 | H11: B-D | I11: 300 | J11: 662 | K11: 31 | L11: 0.5166666667 | M11: 662 | N11: 0 | O11: 0 | P11: 0 | Q11: 0 | R11: 0 | S11: 0 | T11: 0 | U11: 342.0333333 | V11: 0 | W11: 0 | X11: 0 | Y11: 0 | Z11: 0 | AA11: 0
A12: [iCRS08923-7]* | B12: NOEL | C12: 11/09/2022 09:47:05.748PST | D12: 2022-11-09 | E12: 2022-11-09T10:00:00 | F12: 2022-11-09T11:00:00 | G12: 11 | H12: A-D | I12: 297 | J12: 912 | K12: 60 | L12: 1 | M12: 871 | N12: 0 | O12: 41 | P12: 0 | Q12: 0 | R12: 0 | S12: 0 | T12: 0 | U12: 871 | V12: 0 | W12: 41 | X12: 0 | Y12: 0 | Z12: 0 | AA12: 0
A13: [iCRS08916-7]* | B13: NOEL | C13: 11/09/2022 09:09:28.423PST | D13: 2022-11-09 | E13: 2022-11-09T09:09:00 | F13: 2022-11-09T10:00:00 | G13: 10 | H13: A-D | I13: 264 | J13: 862 | K13: 51 | L13: =K13/60 -> 0.85 | M13: 814 | N13: 0 | O13: 41 | P13: 0 | Q13: 7 | R13: 0 | S13: 0 | T13: 0 | U13: =M13*$L13 -> 691.9 | V13: =N13*$L13 -> 0 | W13: 34.85 | X13: 0 | Y13: 5.95 | Z13: 0 | AA13: 0
A14: [iCRS08905] | B14: SI | C14: 10/26/2022 09:07:37.505PDT | D14: 2022-10-26 | E14: 2022-10-26T09:07:00 | F14: 2022-10-26T10:00:00 | G14: 10 | H14: A-D | I14: 85 | J14: 85 | K14: 53 | L14: =53/60 -> 0.8833333333 | M14: 85 | N14: 0 | R14: 0 | S14: 0 | T14: 0 | U14: =M14*L14 -> 75.08333333 | V14: 0 | Z14: 0 | AA14: 0
A15: [iCRS08904] | B15: SI | C15: 10/26/2022 08:24:42.403PDT | D15: 2022-10-26 | E15: 2022-10-26T08:24:00 | F15: 2022-10-26T09:00:00 | G15: 9 | H15: B-D | I15: 50 | J15: 57 | K15: 36 | L15: =36/60 -> 0.6 | M15: 57 | N15: 0 | R15: 0 | S15: 0 | T15: 0 | U15: =M15*L15 -> 34.2 | V15: 0 | Z15: 0 | AA15: 0
A16: [iCRS08885] | B16: R-P | C16: 06/23/2022 08:10:56.026PDT | D16: 2022-06-23 | E16: 2022-06-23T09:00:00 | F16: 2022-06-23T10:00:00 | G16: 10 | H16: A-D | I16: 75 | J16: 500 | K16: 60 | L16: 1 | M16: 500 | N16: 0 | R16: 0 | S16: 0 | T16: 0 | U16: 500 | V16: 0 | Z16: 0 | AA16: 0
A17: [iCRS08878] | B17: R-P | C17: 06/23/2022 07:31:06.749PDT | D17: 2022-06-23 | E17: 2022-06-23T08:00:00 | F17: 2022-06-23T09:00:00 | G17: 9 | H17: A-D | I17: 50 | J17: 360 | K17: 60 | L17: 1 | M17: 360 | N17: 0 | R17: 0 | S17: 0 | T17: 0 | U17: 360 | V17: 0 | Z17: 0 | AA17: 0
A18: [iCRS08877] | B18: R-P | C18: 06/23/2022 07:30:15.021PDT | D18: 2022-06-23 | E18: 2022-06-23T07:30:00 | F18: 2022-06-23T08:00:00 | G18: 8 | H18: A-D | I18: 50 | J18: 339 | K18: 30 | L18: 0.5 | M18: 339 | N18: 0 | R18: 0 | S18: 0 | T18: 0 | U18: 170 | V18: 0 | Z18: 0 | AA18: 0
A19: [iCRS08762-7] | B19: NWACI_NS | C19: 07/09/2021 15:53:33.485PDT | D19: 2021-09-07 | E19: 2021-07-09T16:00:00 | F19: 2021-07-09T17:00:00 | G19: 17 | H19: A-D | I19: 1300 | J19: 2209 | K19: 60 | L19: 1 | M19: 0 | N19: 0 | R19: 0 | S19: 2209 | T19: 0 | U19: 0 | V19: 0 | Z19: 0 | AA19: 2209
A20: [iCRS08724-7] | B20: NWACI_NS | C20: 09/06/2020 17:50:33.599PDT | D20: 2020-09-06 | E20: 2020-09-06T18:00:00 | F20: 2020-09-06T18:15:00 | G20: 19 | H20: A | I20: 960 | J20: 1170 | K20: 15 | L20: 0.2499999999 | M20: 0 | N20: 372 | R20: 0 | S20: 797 | T20: 0 | U20: 0 | V20: 93 | Z20: 0 | AA20: 199
A21: [iCRS08718] | B21: SOC | C21: 08/06/2020 08:45:15.181PDT | D21: 2020-08-06 | E21: 2020-08-06T09:00:00 | F21: 2020-08-06T10:00:00 | G21: 10 | H21: A-D | I21: 300 | J21: 371 | K21: 60 | L21: 0.9999999999 | M21: 371 | N21: 0 | R21: 0 | S21: 0 | T21: 0 | U21: 371 | V21: 0 | Z21: 0 | AA21: 0
A22: [iCRS08717] | B22: SOC | C22: 08/06/2020 08:30:25.154PDT | D22: 2020-08-06 | E22: 2020-08-06T08:30:00 | F22: 2020-08-06T09:00:00 | G22: 9 | H22: C-D | I22: 200 | J22: 248 | K22: 30 | L22: 0.5000000001 | M22: 248 | N22: 0 | R22: 0 | S22: 0 | T22: 0 | U22: 124 | V22: 0 | Z22: 0 | AA22: 0
A23: [iCRS08692-7] | B23: NWACI_NS | C23: 06/27/2020 12:12:27.279PDT | D23: 2020-06-27 | E23: 2020-06-27T12:12:00 | F23: 2020-06-27T13:00:00 | G23: 13 | H23: A-D | I23: 300 | J23: 370 | K23: 48 | L23: 0.8 | M23: 70 | N23: 0 | R23: 20 | S23: 280 | T23: 0 | U23: 56 | V23: 0 | Z23: 16 | AA23: 224
A24: [iCRS08693-7] | B24: NWACI_NS | C24: 06/27/2020 12:26:26.609PDT | D24: 2020-06-27 | E24: 2020-06-27T12:26:00 | F24: 2020-06-27T13:00:00 | G24: 13 | H24: B-D | I24: 300 | J24: 351 | K24: 34 | L24: 0.5666666666 | M24: 0 | N24: 26 | R24: 0 | S24: 325 | T24: 0 | U24: 0 | V24: 15 | Z24: 0 | AA24: 184
A25: [iCRS08691-7] | B25: NWACI_NS | C25: 06/27/2020 11:32:57.145PDT | D25: 2020-06-27 | E25: 2020-06-27T11:32:00 | F25: 2020-06-27T12:00:00 | G25: 12 | H25: C-D | I25: 350 | J25: 420 | K25: 28 | L25: 0.4666666666 | M25: 0 | N25: 0 | R25: 0 | S25: 420 | T25: 0 | U25: 0 | V25: 0 | Z25: 0 | AA25: 196
A26: [iCRS08690-7] | B26: NWACI_NS | C26: 06/27/2020 11:13:18.756PDT | D26: 2020-06-27 | E26: 2020-06-27T11:13:00 | F26: 2020-06-27T12:00:00 | G26: 12 | H26: A-D | I26: 250 | J26: 340 | K26: 47 | L26: 0.7833333333 | M26: 87 | N26: 44 | R26: 39 | S26: 170 | T26: 0 | U26: 68 | V26: 34 | Z26: 31 | AA26: 133
A27: [iCRS08689-7] | B27: NWACI_NS | C27: 06/26/2020 21:22:55.352PDT | D27: 2020-06-26 | E27: 2020-06-26T21:22:00 | F27: 2020-06-26T22:00:00 | G27: 22 | H27: B-D | I27: 500 | J27: 585 | K27: 38 | L27: 0.6333333333 | M27: 0 | N27: 0 | R27: 0 | S27: 585 | T27: 0 | U27: 0 | V27: 0 | Z27: 0 | AA27: 370
A28: [iCRS08688-7] | B28: NWACI_NS | C28: 06/26/2020 20:19:45.395PDT | D28: 2020-06-26 | E28: 2020-06-26T20:19:00 | F28: 2020-06-26T21:00:00 | G28: 21 | H28: B-D | I28: 700 | J28: 824 | K28: 41 | L28: 0.6833333333 | M28: 0 | N28: 0 | R28: 0 | S28: 824 | T28: 0 | U28: 0 | V28: 0 | Z28: 0 | AA28: 563
A29: [iCRS08687-7] | B29: NWACI_NS | C29: 06/26/2020 19:24:34.903PDT | D29: 2020-06-26 | E29: 2020-06-26T19:24:00 | F29: 2020-06-26T20:00:00 | G29: 20 | H29: B-D | I29: 700 | J29: 822 | K29: 36 | L29: 0.6 | M29: 0 | N29: 47 | R29: 0 | S29: 775 | T29: 0 | U29: 0 | V29: 28 | Z29: 0 | AA29: 465
A30: [iCRS08686-7] | B30: NWACI_NS | C30: 06/26/2020 18:27:41.910PDT | D30: 2020-06-26 | E30: 2020-06-26T18:27:00 | F30: 2020-06-26T19:00:00 | G30: 19 | H30: B-D | I30: 600 | J30: 704 | K30: 33 | L30: 0.5499999999 | M30: 0 | N30: 50 | R30: 0 | S30: 654 | T30: 0 | U30: 0 | V30: 27 | Z30: 0 | AA30: 360
A31: [iCRS08685-7] | B31: NWACI_NS | C31: 06/26/2020 17:13:07.887PDT | D31: 2020-06-26 | E31: 2020-06-26T17:13:00 | F31: 2020-06-26T18:00:00 | G31: 18 | H31: A-D | I31: 700 | J31: 819 | K31: 47 | L31: 0.7833333333 | M31: 0 | N31: 0 | R31: 0 | S31: 819 | T31: 0 | U31: 0 | V31: 0 | Z31: 0 | AA31: 642
A32: [iCRS08684-7] | B32: NWACI_NS | C32: 06/26/2020 16:31:36.389PDT | D32: 2020-06-26 | E32: 2020-06-26T16:31:00 | F32: 2020-06-26T17:00:00 | G32: 17 | H32: C-D | I32: 450 | J32: 527 | K32: 29 | L32: 0.4833333333 | M32: 0 | N32: 0 | R32: 0 | S32: 527 | T32: 0 | U32: 0 | V32: 0 | Z32: 0 | AA32: 255
A33: [iCRS08683-7] | B33: NWACI_NS | C33: 06/26/2020 15:21:25.045PDT | D33: 2020-06-26 | E33: 2020-06-26T15:21:00 | F33: 2020-06-26T16:00:00 | G33: 16 | H33: B-D | I33: 500 | J33: 585 | K33: 39 | L33: 0.65 | M33: 0 | N33: 25 | R33: 0 | S33: 560 | T33: 0 | U33: 0 | V33: 16 | Z33: 0 | AA33: 364
A34: [iCRS08682-7] | B34: NWACI_NS | C34: 06/26/2020 14:28:55.475PDT | D34: 2020-06-26 | E34: 2020-06-26T14:28:00 | F34: 2020-06-26T15:00:00 | G34: 15 | H34: B-D | I34: 400 | J34: 470 | K34: 32 | L34: 0.5333333333 | M34: 0 | N34: 0 | R34: 0 | S34: 470 | T34: 0 | U34: 0 | V34: 0 | Z34: 0 | AA34: 251
A35: [iCRS08681-7] | B35: NWACI_NS | C35: 06/26/2020 14:17:32.275PDT | D35: 2020-06-26 | E35: 2020-06-26T14:17:00 | F35: 2020-06-26T15:00:00 | G35: 15 | H35: B-D | I35: 350 | J35: 408 | K35: 43 | L35: 0.7166666667 | M35: 0 | N35: 0 | R35: 0 | S35: 408 | T35: 0 | U35: 0 | V35: 0 | Z35: 0 | AA35: 292
A36: [iCRS08677-7] | B36: NWACI_NS | C36: 06/05/2020 15:01:39.196PDT | D36: 2020-06-05 | E36: 2020-06-05T15:01:00 | F36: 2020-06-05T15:15:00 | G36: 16 | H36: A | I36: 100 | J36: 118 | K36: 14 | L36: 0.2333333332 | M36: 0 | N36: 0 | R36: 0 | S36: 118 | T36: 0 | U36: 0 | V36: 0 | Z36: 0 | AA36: 28
A37: [iCRS08664] | B37: NOEL | C37: 03/02/2020 15:13:09.715PST | D37: 2020-03-02 | E37: 2020-03-02T15:13:00 | F37: 2020-03-02T16:00:00 | G37: 16 | H37: A-D | I37: 100 | J37: 291 | K37: 47 | L37: 0.7833333333 | M37: 291 | N37: 0 | R37: 0 | S37: 0 | T37: 0 | U37: 228 | V37: 0 | Z37: 0 | AA37: 0
A38: [iCRS08663] | B38: NOEL | C38: 03/02/2020 14:25:18.775PST | D38: 2020-03-02 | E38: 2020-03-02T14:25:00 | F38: 2020-03-02T15:00:00 | G38: 15 | H38: B-D | I38: 150 | J38: 376 | K38: 35 | L38: 0.5833333333 | M38: 376 | N38: 0 | R38: 0 | S38: 0 | T38: 0 | U38: 219 | V38: 0 | Z38: 0 | AA38: 0
A39: [iCRS08662] | B39: NOEL | C39: 03/02/2020 12:51:10.693PST | D39: 2020-03-02 | E39: 2020-03-02T13:00:00 | F39: 2020-03-02T14:00:00 | G39: 14 | H39: A-D | I39: 200 | J39: 483 | K39: 60 | L39: 1 | M39: 483 | N39: 0 | R39: 0 | S39: 0 | T39: 0 | U39: 483 | V39: 0 | Z39: 0 | AA39: 0
A40: [iCRS08661] | B40: NOEL | C40: 03/02/2020 12:45:08.703PST | D40: 2020-03-02 | E40: 2020-03-02T12:45:00 | F40: 2020-03-02T13:00:00 | G40: 13 | H40: D | I40: 200 | J40: 493 | K40: 15 | L40: 0.2499999999 | M40: 493 | N40: 0 | R40: 0 | S40: 0 | T40: 0 | U40: 123 | V40: 0 | Z40: 0 | AA40: 0
A41: [iCRS08660] | B41: NOEL | C41: 02/29/2020 12:45:11.504PST | D41: 2020-02-29 | E41: 2020-02-29T13:00:00 | F41: 2020-02-29T14:00:00 | G41: 14 | H41: A-D | I41: 100 | J41: 244 | K41: 60 | L41: 1 | M41: 244 | N41: 0 | R41: 0 | S41: 0 | T41: 0 | U41: 244 | V41: 0 | Z41: 0 | AA41: 0
A42: [iCRS08659] | B42: NOEL | C42: 02/29/2020 10:50:00.982PST | D42: 2020-02-29 | E42: 2020-02-29T11:00:00 | F42: 2020-02-29T12:00:00 | G42: 12 | H42: A-D | I42: 100 | J42: 245 | K42: 60 | L42: 0.9999999999 | M42: 245 | N42: 0 | R42: 0 | S42: 0 | T42: 0 | U42: 245 | V42: 0 | Z42: 0 | AA42: 0
A43: [iCRS08658] | B43: NOEL | C43: 02/29/2020 08:47:33.626PST | D43: 2020-02-29 | E43: 2020-02-29T09:00:00 | F43: 2020-02-29T10:00:00 | G43: 10 | H43: A-D | I43: 150 | J43: 399 | K43: 60 | L43: 0.9999999999 | M43: 399 | N43: 0 | R43: 0 | S43: 0 | T43: 0 | U43: 399 | V43: 0 | Z43: 0 | AA43: 0
A44: [iCRS08656] | B44: NOEL | C44: 02/29/2020 08:14:26.502PST | D44: 2020-02-29 | E44: 2020-02-29T08:14:00 | F44: 2020-02-29T09:00:00 | G44: 9 | H44: A-D | I44: 200 | J44: 566 | K44: 46 | L44: 0.7666666667 | M44: 566 | N44: 0 | R44: 0 | S44: 0 | T44: 0 | U44: 434 | V44: 0 | Z44: 0 | AA44: 0
A45: [iCRS08657] | B45: NOEL | C45: 02/29/2020 08:24:26.832PST | D45: 2020-02-29 | E45: 2020-02-29T08:24:00 | F45: 2020-02-29T09:00:00 | G45: 9 | H45: B-D | I45: 100 | J45: 282 | K45: 36 | L45: 0.6 | M45: 282 | N45: 0 | R45: 0 | S45: 0 | T45: 0 | U45: 169 | V45: 0 | Z45: 0 | AA45: 0
A46: [iCRS08655] | B46: NOEL | C46: 02/27/2020 11:46:10.932PST | D46: 2020-02-27 | E46: 2020-02-27T12:00:00 | F46: 2020-02-27T13:00:00 | G46: 13 | H46: A-D | I46: 250 | J46: 506 | K46: 60 | L46: 0.9999999999 | M46: 506 | N46: 0 | R46: 0 | S46: 0 | T46: 0 | U46: 506 | V46: 0 | Z46: 0 | AA46: 0
A47: [iCRS08654] | B47: NOEL | C47: 02/27/2020 10:46:27.268PST | D47: 2020-02-27 | E47: 2020-02-27T11:00:00 | F47: 2020-02-27T12:00:00 | G47: 12 | H47: A-D | I47: 250 | J47: 488 | K47: 60 | L47: 0.9999999999 | M47: 488 | N47: 0 | R47: 0 | S47: 0 | T47: 0 | U47: 488 | V47: 0 | Z47: 0 | AA47: 0
A48: [iCRS08653] | B48: NOEL | C48: 02/27/2020 10:25:35.432PST | D48: 2020-02-27 | E48: 2020-02-27T10:25:00 | F48: 2020-02-27T11:00:00 | G48: 11 | H48: B-D | I48: 250 | J48: 486 | K48: 35 | L48: 0.5833333333 | M48: 486 | N48: 0 | R48: 0 | S48: 0 | T48: 0 | U48: 283 | V48: 0 | Z48: 0 | AA48: 0
A49: [iCRS08652] | B49: NOEL | C49: 02/26/2020 15:25:31.765PST | D49: 2020-02-26 | E49: 2020-02-26T15:25:00 | F49: 2020-02-26T16:00:00 | G49: 16 | H49: B-D | I49: 200 | J49: 395 | K49: 35 | L49: 0.5833333333 | M49: 395 | N49: 0 | R49: 0 | S49: 0 | T49: 0 | U49: 230 | V49: 0 | Z49: 0 | AA49: 0
A50: [iCRS08650] | B50: NOEl | C50: 02/26/2020 13:55:06.084PST | D50: 2020-02-26 | E50: 2020-02-26T14:00:00 | F50: 2020-02-26T15:00:00 | G50: 15 | H50: A-D | I50: 250 | J50: 491 | K50: 60 | L50: 0.9999999999 | M50: 491 | N50: 0 | R50: 0 | S50: 0 | T50: 0 | U50: 491 | V50: 0 | Z50: 0 | AA50: 0
A51: [iCRS08648] | B51: NOEL | C51: 02/26/2020 13:28:02.674PST | D51: 2020-02-26 | E51: 2020-02-26T13:28:00 | F51: 2020-02-26T14:00:00 | G51: 14 | H51: B-D | I51: 250 | J51: 486 | K51: 32 | L51: 0.5333333333 | M51: 486 | N51: 0 | R51: 0 | S51: 0 | T51: 0 | U51: 259 | V51: 0 | Z51: 0 | AA51: 0
A52: [iCRS08646] | B52: NOEL | C52: 02/26/2020 12:01:11.044PST | D52: 2020-02-26 | E52: 2020-02-26T12:01:00 | F52: 2020-02-26T13:00:00 | G52: 13 | H52: A-D | I52: 250 | J52: 476 | K52: 59 | L52: 0.9833333332 | M52: 476 | N52: 0 | R52: 0 | S52: 0 | T52: 0 | U52: 468 | V52: 0 | Z52: 0 | AA52: 0
A53: [iCRS08645] | B53: NOEL | C53: 02/26/2020 11:27:58.457PST | D53: 2020-02-26 | E53: 2020-02-26T11:27:00 | F53: 2020-02-26T12:00:00 | G53: 12 | H53: B-D | I53: 250 | J53: 496 | K53: 33 | L53: 0.55 | M53: 496 | N53: 0 | R53: 0 | S53: 0 | T53: 0 | U53: 273 | V53: 0 | Z53: 0 | AA53: 0
A54: [iCRS08644] | B54: NOEL | C54: 02/24/2020 15:28:52.528PST | D54: 2020-02-24 | E54: 2020-02-24T15:28:00 | F54: 2020-02-24T16:00:00 | G54: 16 | H54: B-D | I54: 250 | J54: 523 | K54: 32 | L54: 0.5333333333 | M54: 523 | N54: 0 | R54: 0 | S54: 0 | T54: 0 | U54: 279 | V54: 0 | Z54: 0 | AA54: 0
A55: [iCRS08642] | B55: NOEL | C55: 02/24/2020 10:56:54.097PST | D55: 2020-02-24 | E55: 2020-02-24T11:00:00 | F55: 2020-02-24T12:00:00 | G55: 12 | H55: A-D | I55: 400 | J55: 825 | K55: 60 | L55: 0.9999999999 | M55: 825 | N55: 0 | R55: 0 | S55: 0 | T55: 0 | U55: 825 | V55: 0 | Z55: 0 | AA55: 0
A56: [iCRS08641] | B56: NOEL | C56: 02/24/2020 09:52:23.903PST | D56: 2020-02-24 | E56: 2020-02-24T10:00:00 | F56: 2020-02-24T11:00:00 | G56: 11 | H56: A-D | I56: 400 | J56: 829 | K56: 60 | L56: 1 | M56: 829 | N56: 0 | R56: 0 | S56: 0 | T56: 0 | U56: 829 | V56: 0 | Z56: 0 | AA56: 0
A57: [iCRS08640] | B57: NOEL | C57: 02/24/2020 08:51:41.597PST | D57: 2020-02-24 | E57: 2020-02-24T09:00:00 | F57: 2020-02-24T10:00:00 | G57: 10 | H57: A-D | I57: 400 | J57: 877 | K57: 60 | L57: 0.9999999999 | M57: 877 | N57: 0 | R57: 0 | S57: 0 | T57: 0 | U57: 877 | V57: 0 | Z57: 0 | AA57: 0
A58: [iCRS08638] | B58: NOEL | C58: 02/24/2020 08:23:05.048PST | D58: 2020-02-24 | E58: 2020-02-24T08:23:00 | F58: 2020-02-24T09:00:00 | G58: 9 | H58: B-D | I58: 300 | J58: 674 | K58: 37 | L58: 0.6166666666 | M58: 674 | N58: 0 | R58: 0 | S58: 0 | T58: 0 | U58: 416 | V58: 0 | Z58: 0 | AA58: 0
A59: [iCRS08637] | B59: NOEL | C59: 02/23/2020 13:29:08.332PST | D59: 2020-02-23 | E59: 2020-02-23T13:29:00 | F59: 2020-02-23T14:00:00 | G59: 14 | H59: B-D | I59: 150 | J59: 339 | K59: 31 | L59: 0.5166666668 | M59: 339 | N59: 0 | R59: 0 | S59: 0 | T59: 0 | U59: 175 | V59: 0 | Z59: 0 | AA59: 0
A60: [iCRS08636] | B60: NOEL | C60: 02/23/2020 11:40:18.135PST | D60: 2020-02-23 | E60: 2020-02-23T11:40:00 | F60: 2020-02-23T12:00:00 | G60: 12 | H60: C-D | I60: 150 | J60: 329 | K60: 20 | L60: 0.3333333334 | M60: 329 | N60: 0 | R60: 0 | S60: 0 | T60: 0 | U60: 110 | V60: 0 | Z60: 0 | AA60: 0
A61: [iCRS08635] | B61: NOEL | C61: 02/23/2020 09:55:02.405PST | D61: 2020-02-23 | E61: 2020-02-23T10:00:00 | F61: 2020-02-23T11:00:00 | G61: 11 | H61: A-D | I61: 300 | J61: 641 | K61: 60 | L61: 1 | M61: 641 | N61: 0 | R61: 0 | S61: 0 | T61: 0 | U61: 641 | V61: 0 | Z61: 0 | AA61: 0
A62: [iCRS08634] | B62: NOEL | C62: 02/17/2020 13:46:33.982PST | D62: 2020-02-17 | E62: 2020-02-17T14:00:00 | F62: 2020-02-17T15:00:00 | G62: 15 | H62: A-D | I62: 100 | J62: 219 | K62: 60 | L62: 0.9999999999 | M62: 219 | N62: 0 | R62: 0 | S62: 0 | T62: 0 | U62: 219 | V62: 0 | Z62: 0 | AA62: 0
A63: [iCRS08632] | B63: NOEL | C63: 02/17/2020 12:50:08.935PST | D63: 2020-02-17 | E63: 2020-02-17T13:00:00 | F63: 2020-02-17T14:00:00 | G63: 14 | H63: A-D | I63: 200 | J63: 433 | K63: 60 | L63: 1 | M63: 433 | N63: 0 | R63: 0 | S63: 0 | T63: 0 | U63: 433 | V63: 0 | Z63: 0 | AA63: 0
A64: [iCRS08630] | B64: NOEL | C64: 02/17/2020 12:31:18.105PST | D64: 2020-02-17 | E64: 2020-02-17T12:31:00 | F64: 2020-02-17T13:00:00 | G64: 13 | H64: C-D | I64: 200 | J64: 431 | K64: 29 | L64: 0.4833333333 | M64: 431 | N64: 0 | R64: 0 | S64: 0 | T64: 0 | U64: 208 | V64: 0 | Z64: 0 | AA64: 0
A65: [iCRS08598] | B65: NOEL | C65: 01/12/2020 13:54:23.057PST | D65: 2020-01-12 | E65: 2020-01-12T14:00:00 | F65: 2020-01-12T15:00:00 | G65: 15 | H65: A-D | I65: 250 | J65: 575 | K65: 60 | L65: 0.9999999999 | M65: 575 | N65: 0 | R65: 0 | S65: 0 | T65: 0 | U65: 575 | V65: 0 | Z65: 0 | AA65: 0
A66: [iCRS08597] | B66: NOEL | C66: 01/12/2020 12:42:23.526PST | D66: 2020-01-12 | E66: 2020-01-12T13:00:00 | F66: 2020-01-12T14:00:00 | G66: 14 | H66: A-D | I66: 845 | J66: 1914 | K66: 60 | L66: 1 | M66: 1652 | N66: 262 | R66: 0 | S66: 0 | T66: 0 | U66: 1652 | V66: 262 | Z66: 0 | AA66: 0
A67: [iCRS08593] | B67: NOEL | C67: 01/12/2020 11:04:41.815PST | D67: 2020-01-12 | E67: 2020-01-12T12:00:00 | F67: 2020-01-12T13:00:00 | G67: 13 | H67: A-D | I67: 350 | J67: 838 | K67: 60 | L67: 0.9999999999 | M67: 838 | N67: 0 | R67: 0 | S67: 0 | T67: 0 | U67: 838 | V67: 0 | Z67: 0 | AA67: 0
A68: [iCRS08596] | B68: NOEL | C68: 01/12/2020 12:35:22.651PST | D68: 2020-01-12 | E68: 2020-01-12T12:35:00 | F68: 2020-01-12T13:00:00 | G68: 13 | H68: C-D | I68: 175 | J68: 391 | K68: 25 | L68: 0.4166666666 | M68: 391 | N68: 0 | R68: 0 | S68: 0 | T68: 0 | U68: 163 | V68: 0 | Z68: 0 | AA68: 0
A69: [iCRS08592] | B69: NOEL | C69: 01/12/2020 11:01:23.971PST | D69: 2020-01-12 | E69: 2020-01-12T11:01:00 | F69: 2020-01-12T12:00:00 | G69: 12 | H69: A-D | I69: 350 | J69: 833 | K69: 59 | L69: 0.9833333334 | M69: 833 | N69: 0 | R69: 0 | S69: 0 | T69: 0 | U69: 819 | V69: 0 | Z69: 0 | AA69: 0
A70: [iCRS08590] | B70: NOEL | C70: 01/12/2020 09:33:57.338PST | D70: 2020-01-12 | E70: 2020-01-12T10:00:00 | F70: 2020-01-12T11:00:00 | G70: 11 | H70: A-D | I70: 150 | J70: 348 | K70: 60 | L70: 1 | M70: 348 | N70: 0 | R70: 0 | S70: 0 | T70: 0 | U70: 348 | V70: 0 | Z70: 0 | AA70: 0
A71: [iCRS08588] | B71: NOEL | C71: 01/12/2020 10:07:18.808PST | D71: 2020-01-12 | E71: 2020-01-12T10:07:00 | F71: 2020-01-12T11:00:00 | G71: 11 | H71: A-D | I71: 100 | J71: 248 | K71: 53 | L71: 0.8833333334 | M71: 248 | N71: 0 | R71: 0 | S71: 0 | T71: 0 | U71: 219 | V71: 0 | Z71: 0 | AA71: 0
A72: [iCRS08591] | B72: NOEL | C72: 01/12/2020 09:35:24.362PST | D72: 2020-01-12 | E72: 2020-01-12T09:35:00 | F72: 2020-01-12T10:00:00 | G72: 10 | H72: C-D | I72: 150 | J72: 342 | K72: 25 | L72: 0.4166666666 | M72: 342 | N72: 0 | R72: 0 | S72: 0 | T72: 0 | U72: 142 | V72: 0 | Z72: 0 | AA72: 0
A73: [iCRS08555-7] | B73: NOEL | C73: 10/26/2019 17:45:02.609PDT | D73: 2019-10-26 | E73: 2019-10-26T18:00:00 | F73: 2019-10-26T19:00:00 | G73: 19 | H73: A-D | I73: 81 | J73: 268 | K73: 60 | L73: 0.9999999999 | M73: 2 | N73: 0 | R73: 0 | S73: 266 | T73: 0 | U73: 2 | V73: 0 | Z73: 0 | AA73: 266
A74: [iCRS08548-7] | B74: NOEL | C74: 10/25/2019 19:51:49.096PDT | D74: 2019-10-25 | E74: 2019-10-25T20:00:00 | F74: 2019-10-25T21:00:00 | G74: 21 | H74: A-D | I74: 81 | J74: 272 | K74: 60 | L74: 0.9999999999 | M74: 32 | N74: 0 | R74: 0 | S74: 240 | T74: 0 | U74: 32 | V74: 0 | Z74: 0 | AA74: 240
A75: [iCRS08547-7] | B75: NOEL | C75: 10/25/2019 18:43:06.325PDT | D75: 2019-10-25 | E75: 2019-10-25T19:00:00 | F75: 2019-10-25T20:00:00 | G75: 20 | H75: A-D | I75: 208 | J75: 686 | K75: 60 | L75: 1 | M75: 32 | N75: 0 | R75: 0 | S75: 654 | T75: 0 | U75: 32 | V75: 0 | Z75: 0 | AA75: 654
A76: [iCRS08544-7] | B76: NOEL | C76: 10/25/2019 17:46:34.900PDT | D76: 2019-10-25 | E76: 2019-10-25T18:00:00 | F76: 2019-10-25T19:00:00 | G76: 19 | H76: A-D | I76: 142 | J76: 471 | K76: 60 | L76: 0.9999999999 | M76: 38 | N76: 0 | R76: 0 | S76: 433 | T76: 0 | U76: 38 | V76: 0 | Z76: 0 | AA76: 433
A77: [iCRS08543-7] | B77: NOEL | C77: 10/25/2019 11:43:54.605PDT | D77: 2019-10-25 | E77: 2019-10-25T12:00:00 | F77: 2019-10-25T13:00:00 | G77: 13 | H77: A-D | I77: 102 | J77: 362 | K77: 60 | L77: 0.9999999999 | M77: 77 | N77: 0 | R77: 0 | S77: 285 | T77: 0 | U77: 77 | V77: 0 | Z77: 0 | AA77: 285
A78: [iCRS08538] | B78: NOEL | C78: 10/22/2019 22:43:32.466PDT | D78: 2019-10-22 | E78: 2019-10-22T23:00:00 | F78: 2019-10-23 | G78: 24 | H78: A-D | I78: 186 | J78: 391 | K78: 60 | L78: 0.9999999999 | M78: 391 | N78: 0 | R78: 0 | S78: 0 | T78: 0 | U78: 391 | V78: 0 | Z78: 0 | AA78: 0
A79: [iCRS08537] | B79: NOEL | C79: 10/22/2019 21:44:52.108PDT | D79: 2019-10-22 | E79: 2019-10-22T21:45:00 | F79: 2019-10-22T22:00:00 | G79: 22 | H79: D | I79: 15 | J79: 38 | K79: 15 | L79: 0.2499999999 | M79: 38 | N79: 0 | R79: 0 | S79: 0 | T79: 0 | U79: 9 | V79: 0 | Z79: 0 | AA79: 0
A80: [iCRS08533] | B80: NOEL | C80: 10/22/2019 13:59:46.968PDT | D80: 2019-10-22 | E80: 2019-10-22T14:00:00 | F80: 2019-10-22T15:00:00 | G80: 15 | H80: A-D | I80: 34 | J80: 82 | K80: 60 | L80: 0.9999999999 | M80: 82 | N80: 0 | R80: 0 | S80: 0 | T80: 0 | U80: 82 | V80: 0 | Z80: 0 | AA80: 0
A81: [iCRS08531] | B81: NOEL | C81: 10/22/2019 11:42:36.820PDT | D81: 2019-10-22 | E81: 2019-10-22T12:00:00 | F81: 2019-10-22T13:00:00 | G81: 13 | H81: A-D | I81: 101 | J81: 351 | K81: 60 | L81: 0.9999999999 | M81: 351 | N81: 0 | R81: 0 | S81: 0 | T81: 0 | U81: 351 | V81: 0 | Z81: 0 | AA81: 0
A82: [iCRS08529] | B82: NOEL | C82: 10/22/2019 10:53:14.788PDT | D82: 2019-10-22 | E82: 2019-10-22T11:00:00 | F82: 2019-10-22T12:00:00 | G82: 12 | H82: A-D | I82: 6 | J82: 22 | K82: 60 | L82: 0.9999999999 | M82: 22 | N82: 0 | R82: 0 | S82: 0 | T82: 0 | U82: 22 | V82: 0 | Z82: 0 | AA82: 0
A83: [iCRS08526] | B83: NOEL | C83: 10/22/2019 08:41:58.777PDT | D83: 2019-10-22 | E83: 2019-10-22T09:00:00 | F83: 2019-10-22T10:00:00 | G83: 10 | H83: A-D | I83: 73 | J83: 183 | K83: 60 | L83: 0.9999999999 | M83: 183 | N83: 0 | R83: 0 | S83: 0 | T83: 0 | U83: 183 | V83: 0 | Z83: 0 | AA83: 0
A84: [iCRS08525-7] | B84: NOEL | C84: 10/22/2019 07:41:19.654PDT | D84: 2019-10-22 | E84: 2019-10-22T08:00:00 | F84: 2019-10-22T09:00:00 | G84: 9 | H84: A-D | I84: 344 | J84: 890 | K84: 60 | L84: 0.9999999999 | M84: 539 | N84: 0 | R84: 0 | S84: 351 | T84: 0 | U84: 539 | V84: 0 | Z84: 0 | AA84: 351
A85: [iCRS08508-7] | B85: NWACI_NS | C85: 09/25/2019 18:41:54.401PDT | D85: 2019-09-25 | E85: 2019-09-25T18:45:00 | F85: 2019-09-25T19:00:00 | G85: 19 | H85: D | I85: 500 | J85: 572 | K85: 15 | L85: 0.2499999999 | M85: 0 | N85: 7 | R85: 0 | S85: 565 | T85: 0 | U85: 0 | V85: 2 | Z85: 0 | AA85: 141
A86: [iCRS08506-7] | B86: NWACI_NS | C86: 09/25/2019 18:10:58.495PDT | D86: 2019-09-25 | E86: 2019-09-25T18:15:00 | F86: 2019-09-25T18:30:00 | G86: 19 | H86: B | I86: 500 | J86: 572 | K86: 15 | L86: 0.2500000001 | M86: 0 | N86: 1 | R86: 0 | S86: 571 | T86: 0 | U86: 0 | V86: 0 | Z86: 0 | AA86: 143
A87: [iCRS08507-7] | B87: NWACI_NS | C87: 09/25/2019 18:24:27.119PDT | D87: 2019-09-25 | E87: 2019-09-25T18:15:00 | F87: 2019-09-25T18:30:00 | G87: 19 | H87: B | I87: 500 | J87: 572 | K87: 15 | L87: 0.2500000001 | M87: 0 | N87: 0 | R87: 0 | S87: 572 | T87: 0 | U87: 0 | V87: 0 | Z87: 0 | AA87: 143
A88: [iCRS08504-7] | B88: NWACI_NS | C88: 09/25/2019 17:24:04.267PDT | D88: 2019-09-25 | E88: 2019-09-25T17:15:00 | F88: 2019-09-25T17:30:00 | G88: 18 | H88: B | I88: 500 | J88: 578 | K88: 15 | L88: 0.2499999999 | M88: 0 | N88: 82 | R88: 0 | S88: 496 | T88: 0 | U88: 0 | V88: 20 | Z88: 0 | AA88: 124
A89: [iCRS08505-7] | B89: NWACI_NS | C89: 09/25/2019 17:42:29.470PDT | D89: 2019-09-25 | E89: 2019-09-25T17:45:00 | F89: 2019-09-25T18:00:00 | G89: 18 | H89: D | I89: 500 | J89: 572 | K89: 15 | L89: 0.2499999999 | M89: 0 | N89: 13 | R89: 0 | S89: 559 | T89: 0 | U89: 0 | V89: 3 | Z89: 0 | AA89: 140
A90: [iCRS38173] | B90: NOEL | C90: 02/22/2019 09:43:30.869PST | D90: 2019-02-22 | E90: 2019-02-22T09:45:00 | F90: 2019-02-22T10:00:00 | G90: 10 | H90: D | I90: 250 | J90: 832 | K90: 15 | L90: 0.2499999999 | M90: 832 | N90: 0 | R90: 0 | S90: 0 | T90: 0 | U90: 208 | V90: 0 | Z90: 0 | AA90: 0
